fUSD/lending_fUSD_20251117
["ID","MTS","AMOUNT","RATE_DAILY","PERIOD"]
[394243677,1763404239387,-1400.0,0.00026282,2]
[394243679,1763404239398,-1600.0,0.00026967,2]
[394243681,1763404239410,-289.65,0.000276,7]
[394243683,1763404239420,-214.79214275,0.00027652,5]
[394243685,1763404239429,-2683.39468517,0.00028605,2]
[394243687,1763404239438,-200.22259883,0.00029986,2]
[394243689,1763404239447,-161.59,0.00030106,2]
[394243691,1763404239457,-2683.39468517,0.0003115,2]
[394243693,1763404239467,-151.0,0.00031797,7]
[394243695,1763404239476,-5070.23420487,0.000318,2]
[394243697,1763404239485,-179.09784953,0.000319,15]
[394243699,1763404239495,-1000.0,0.00032008,7]
[394243701,1763404239504,-5070.23420486,0.00032865,2]
[394243703,1763404239513,-2683.39468517,0.00033696,2]
[394243705,1763404239522,-5070.23420486,0.0003393,2]
[394243707,1763404239531,-1040.14,0.00034017,2]
[394243709,1763404239540,-5070.23420486,0.00034994,2]
[394243711,1763404239549,-500.0,0.00035616,2]
[394243713,1763404239559,-500.0,0.00035616,2]
[394243715,1763404239569,-500.0,0.00035616,2]
[394243717,1763404239578,-150.0,0.00035617,2]
[394243719,1763404239587,-500.0,0.0003589,2]
[394243721,1763404239597,-500.0,0.0003589,2]
[394243723,1763404239606,-601.51451353,0.0003589,2]
[394243725,1763404239615,-5070.23420486,0.00036059,2]
[394243727,1763404239625,-500.0,0.00036164,2]
[394243729,1763404239634,-500.0,0.00036164,2]
[394243731,1763404239642,-2508.91,0.00036213,2]
[394243733,1763404239657,-2683.39468517,0.00036242,2]
[394243735,1763404239668,-500.0,0.00036438,2]
[394243737,1763404239678,-220.20733954,0.00036438,2]
[394243739,1763404239688,-500.0,0.00036712,2]
[394243741,1763404239702,-645.42435838,0.00036986,2]
[394243743,1763404239713,-22669.8170569,0.00037114,4]
[394243745,1763404239725,-5070.23420486,0.00037124,2]
[394243747,1763404239737,-699.27,0.00037242,2]
[394243749,1763404239754,-500.0,0.00037299,2]
[394243751,1763404239765,-150.0,0.00037332,7]
[394243753,1763404239777,-150.0,0.00037332,7]
[394243755,1763404239787,-150.0,0.00037332,7]
[394243757,1763404239802,-150.0,0.00037332,7]
[394243759,1763404239813,-150.0,0.00037332,7]
[394243761,1763404239823,-150.0,0.00037332,7]
[394243763,1763404239833,-150.0,0.00037332,7]
[394243765,1763404239844,-150.0,0.00037332,7]
[394243767,1763404239855,-150.0,0.00037332,7]
[394243769,1763404239867,-500.0,0.00037348,2]
[394243771,1763404239878,-274.67084136,0.00037398,2]
[394243773,1763404239890,-33327.7153,0.00037399,2]
[394243775,1763404239907,-1000.0,0.00037399,2]
[394243777,1763404239917,-594.196983,0.00037413,31]
[394243779,1763404239926,-151.0,0.00037413,31]
[394243780,1763404239935,-594.196983,0.00037413,31]
[394243781,1763404239944,-151.0,0.00037413,31]
[394243782,1763404239954,-594.196983,0.00037413,31]
[394243783,1763404239964,-151.0,0.00037413,31]
[394243784,1763404239975,-151.0,0.00037413,31]
[394243785,1763404239985,-166.110746,0.00037413,31]
[394243786,1763404239995,-151.0,0.00037413,31]
[394243788,1763404240005,-151.0,0.00037413,31]
[394243790,1763404240015,-151.0,0.00037413,31]
[394243791,1763404240024,-151.0,0.00037413,31]
[394243792,1763404240033,-265.593615,0.00037413,31]
[394243793,1763404240043,-22669.8170569,0.00037413,4]
[394243794,1763404240053,-12420.3,0.00037423,2]
[394243796,1763404240063,-999.0,0.00037499,3]
[394243798,1763404240072,-500.0,0.00037973,5]
[394243799,1763404240081,-500.0,0.00037973,5]
[394243800,1763404240092,-90679.2682277,0.0003799,4]
[394243801,1763404240102,-97374.15634242,0.00038,2]
[394243802,1763404240112,-150.0,0.00038023,7]
[394243803,1763404240122,-5070.23420486,0.00038189,2]
[394243804,1763404240131,-1000.0,0.00038219,120]
[394243805,1763404240141,-1000.0,0.00038219,120]
[394243806,1763404240156,-1000.0,0.00038219,120]
[394243807,1763404240166,-1000.0,0.00038219,120]
[394243808,1763404240178,-644.1989899,0.00038219,120]
[394243809,1763404240188,-150.64830389,0.00038356,5]
[394243810,1763404240198,-22669.8170569,0.00038505,4]
[394243811,1763404240209,-151.0,0.00038505,120]
[394243812,1763404240218,-151.0,0.00038505,120]
[394243813,1763404240228,-151.0,0.00038505,120]
[394243814,1763404240237,-253.436384,0.00038505,120]
[394243815,1763404240248,-151.0,0.00038505,120]
[394243816,1763404240258,-151.0,0.00038505,120]
[394243817,1763404240269,-189.883674,0.00038505,120]
[394243818,1763404240280,-151.0,0.00038505,30]
[394243819,1763404240289,-151.0,0.00038505,120]
[394243820,1763404240297,-151.0,0.00038505,120]
[394243821,1763404240307,-151.0,0.00038505,120]
[394243822,1763404240317,-151.0,0.00038505,120]
[394243823,1763404240327,-151.0,0.00038512,14]
[394243824,1763404240336,-1000.0,0.00038515,2]
[394243825,1763404240345,-4075.8433,0.00038515,2]
[394243826,1763404240355,-25540.9046,0.00038515,2]
[394243827,1763404240365,-1000.0,0.00038521,5]
[394243828,1763404240375,-1275.0,0.00038523,2]
[394243829,1763404240385,-793.0,0.00038523,2]
[394243830,1763404240398,-705.0,0.00038523,2]
[394243831,1763404240408,-560.0,0.00038523,2]
[394243832,1763404240417,-234.7706,0.00038525,2]
[394243833,1763404240427,-3011.9463,0.00038525,2]
[394243834,1763404240436,-2500.0,0.00038525,2]
[394243835,1763404240445,-500.0,0.00038614,2]
[394243836,1763404240455,-337.68888476,0.00038614,2]
[394243837,1763404240464,-500.0,0.00038614,120]
[394243838,1763404240473,-113349.085285,0.00038615,4]
[394243839,1763404240483,-174.33572379,0.00038615,2]
[394243840,1763404240492,-594.196983,0.00038615,120]
[394243841,1763404240502,-151.0,0.00038615,120]
[394243842,1763404240511,-594.196983,0.00038615,120]
[394243843,1763404240521,-151.0,0.00038615,120]
[394243844,1763404240531,-594.196983,0.00038615,120]
[394243845,1763404240540,-151.0,0.00038615,120]
[394243846,1763404240549,-264.838396,0.00038615,120]
[394243847,1763404240558,-151.0,0.00038622,14]
[394243848,1763404240568,-151.0,0.00038622,14]
[394243849,1763404240577,-151.0,0.00038622,14]
[394243850,1763404240587,-500.0,0.00038624,120]
[394243851,1763404240596,-500.0,0.00038624,120]
[394243852,1763404240606,-525.85631123,0.00038624,120]
[394243853,1763404240615,-760000.0,0.00038625,2]
[394243854,1763404240624,-594.196983,0.00038625,120]
[394243855,1763404240633,-151.0,0.00038625,120]
[394243856,1763404240642,-594.196983,0.00038625,120]
[394243857,1763404240658,-151.0,0.00038625,120]
[394243858,1763404240668,-594.196983,0.00038625,120]
[394243859,1763404240678,-151.0,0.00038625,120]
[394243860,1763404240687,-151.0,0.00038625,120]
[394243861,1763404240697,-151.0,0.00038625,120]
[394243862,1763404240706,-151.0,0.00038625,120]
[394243863,1763404240716,-151.0,0.00038625,120]
[394243864,1763404240727,-151.0,0.00038625,120]
[394243865,1763404240736,-151.0,0.00038625,120]
[394243867,1763404240746,-151.0,0.00038625,120]
[394243868,1763404240755,-151.0,0.00038625,120]
[394243869,1763404240764,-564.59194382,0.00038673,5]
[394243870,1763404240778,-171.82088036,0.00038673,5]
[394243871,1763404240788,-500.0,0.00038673,2]
[394243872,1763404240797,-500.0,0.00038673,5]
[394243873,1763404240807,-406.97735465,0.00038673,5]
[394243874,1763404240818,-500.0,0.00038673,5]
[394243875,1763404240827,-150.0,0.00038714,7]
[394243876,1763404240837,-150.0,0.00038714,7]
[394243877,1763404240848,-150.0,0.00038714,7]
[394243878,1763404240858,-2683.39468517,0.00038788,2]
[394243879,1763404240868,-500.0,0.00038888,2]
[394243880,1763404240878,-800.0,0.000389,14]
[394243881,1763404240887,-294.42607375,0.00039068,5]
[394243882,1763404240897,-500.0,0.00039162,2]
[394243883,1763404240907,-502.22144577,0.00039221,5]
[394243884,1763404240917,-5070.23420486,0.00039253,2]
[394243885,1763404240927,-1170.0,0.00039275,7]
[394243886,1763404240937,-150.0,0.00039405,7]
[394243887,1763404240947,-150.0,0.00039405,7]
[394243888,1763404240957,-150.0,0.00039405,7]
[394243889,1763404240966,-150.0,0.00039405,7]
[394243890,1763404240976,-150.0,0.00039405,7]
[394243891,1763404240986,-150.0,0.00039405,7]
[394243892,1763404240995,-500.0,0.00039436,2]
[394243893,1763404241006,-439.25,0.0003971,2]
[394243894,1763404241015,-651.0,0.0003973,2]
[394243895,1763404241025,-8574.2876884,0.000399,7]
[394243896,1763404241035,-651.0,0.0003992,7]
[394243897,1763404241044,-1000.0,0.00039959,2]
[394243898,1763404241053,-152.0,0.00039971,3]
[394243899,1763404241063,-188.0,0.0004,2]
[394243900,1763404241072,-150.0,0.00040097,7]
[394243901,1763404241081,-150.0,0.00040097,7]
[394243902,1763404241091,-150.0,0.00040097,7]
[394243903,1763404241100,-1100.0,0.000402,14]
[394243904,1763404241110,-1400.0,0.000403,14]
[394243905,1763404241119,-5070.23420486,0.00040318,15]
[394243906,1763404241128,-200.0,0.000404,14]
[394243907,1763404241137,-651.0,0.00040415,2]
[394243908,1763404241148,-2361.0,0.00040446,2]
[394243909,1763404241158,-200.0,0.000405,14]
[394243910,1763404241168,-200.0,0.000406,14]
[394243911,1763404241177,-322.24574374,0.00040615,50]
[394243912,1763404241187,-200.0,0.000407,14]
[394243913,1763404241196,-298.89,0.00040776,14]
[394243914,1763404241206,-150.0,0.00040788,7]
[394243915,1763404241215,-1000.0,0.000408,2]
[394243916,1763404241224,-1100.0,0.000408,14]
[394243917,1763404241233,-210.07787289,0.00040905,2]
[394243918,1763404241243,-651.0,0.00041024,2]
[394243919,1763404241252,-151.0,0.00041096,50]
[394243920,1763404241262,-151.0,0.00041096,50]
[394243921,1763404241273,-165.87634847,0.00041096,120]
[394243922,1763404241282,-270.0,0.000411,2]
[394243923,1763404241291,-210.07787289,0.00041328,2]
[394243924,1763404241301,-2683.39468517,0.00041334,15]
[394243925,1763404241311,-150.0,0.0004136,20]
[394243926,1763404241320,-8210.0,0.00041363,7]
[394243927,1763404241330,-1000.0,0.0004137,14]
[394243928,1763404241339,-500.0,0.00041373,10]
[394243929,1763404241348,-500.0,0.00041373,10]
[394243930,1763404241358,-332.71817179,0.00041373,10]
[394243931,1763404241367,-500.0,0.00041373,10]
[394243932,1763404241377,-162.67023792,0.00041373,10]
[394243933,1763404241386,-179.09784952,0.00041383,15]
[394243934,1763404241397,-152.694712,0.00041383,7]
[394243935,1763404241407,-5070.23420486,0.00041383,15]
[394243936,1763404241416,-151.0,0.00041383,120]
[394243937,1763404241425,-594.196983,0.00041383,120]
[394243938,1763404241434,-151.0,0.00041383,120]
[394243939,1763404241444,-594.196983,0.00041383,120]
[394243940,1763404241453,-248.471592,0.00041383,120]
[394243941,1763404241462,-594.196983,0.00041383,120]
[394243942,1763404241472,-151.0,0.00041383,120]
[394243943,1763404241489,-151.0,0.00041383,120]
[394243944,1763404241505,-151.0,0.00041383,120]
[394243945,1763404241514,-151.0,0.00041383,120]
[394243946,1763404241523,-151.0,0.00041383,120]
[394243947,1763404241533,-151.0,0.00041383,120]
[394243948,1763404241542,-151.0,0.00041383,120]
[394243949,1763404241551,-294580.70699537,0.00041383,26]
[394243950,1763404241560,-1589420.9868,0.00041383,7]
[394243951,1763404241569,-151.0,0.00041434,15]
[394243952,1763404241578,-500.0,0.00041436,2]
[394243953,1763404241588,-333774.3423,0.00041444,7]
[394243954,1763404241598,-174.33572379,0.00041466,7]
[394243955,1763404241607,-500.0,0.00041466,7]
[394243956,1763404241617,-500.0,0.00041466,2]
[394243957,1763404241626,-501.95355844,0.00041473,10]
[394243958,1763404241635,-501.67582389,0.00041473,10]
[394243959,1763404241644,-500.0,0.00041473,10]
[394243960,1763404241654,-420.27752062,0.00041473,3]
[394243961,1763404241664,-528.12485151,0.00041473,5]
[394243962,1763404241674,-500.0,0.00041473,2]
[394243963,1763404241684,-1000.0,0.00041473,10]
[394243964,1763404241693,-500.0,0.00041473,7]
[394243965,1763404241702,-651.0,0.00041475,2]
[394243966,1763404241711,-85302.77692691,0.00041476,2]
[394243967,1763404241726,-3119.58589212,0.00041476,2]
[394243968,1763404241737,-1230.69881697,0.00041476,2]
[394243969,1763404241745,-686.6652884,0.00041476,2]
[394243970,1763404241760,-280.61488507,0.00038614,15]
[394243971,1763404241770,-3819.72694341,0.00041476,2]
[394243972,1763404241796,-2787.77499,0.00041476,2]
[394243973,1763404241812,-151.0,0.00038505,120]
[394243974,1763404241822,-112459.24664629,0.00041476,2]
[394243975,1763404241831,-5099.3789932,0.00041476,2]
[394243976,1763404241841,-32682.7698182,0.00041476,2]
[394243977,1763404241851,-3725.1483657,0.00041476,2]
[394243978,1763404241863,-69008.9232651,0.00041476,2]
[394243979,1763404241872,-373.9456077,0.00041476,2]
[394243980,1763404241881,-72435.5835526,0.00041476,2]
[394243981,1763404241890,-500.0,0.00041476,2]
[394243982,1763404241901,-500.0,0.00041476,7]
[394243983,1763404241910,-594.196983,0.00041476,120]
[394243984,1763404241919,-151.0,0.00041476,120]
[394243985,1763404241929,-594.196983,0.00041476,120]
[394243986,1763404241938,-151.0,0.00041476,120]
[394243987,1763404241947,-594.196983,0.00041476,120]
[394243988,1763404241956,-594.196983,0.00041476,120]
[394243989,1763404241966,-151.0,0.00041476,120]
[394243990,1763404241975,-151.0,0.00041476,120]
[394243991,1763404241985,-151.0,0.00041476,120]
[394243992,1763404241995,-151.0,0.00041476,120]
[394243993,1763404242006,-200.0,0.00041477,7]
[394243994,1763404242016,-200.0,0.00041477,7]
[394243995,1763404242026,-500.0,0.00041478,7]
[394243996,1763404242036,-500.0,0.00041478,7]
[394243997,1763404242046,-151.0,0.00041483,120]
[394243998,1763404242055,-151.0,0.00041483,120]
[394243999,1763404242065,-151.0,0.00041483,120]
[394244000,1763404242075,-842978.27708164,0.00041483,2]
[394244001,1763404242085,-496.49161426,0.00041483,3]
[394244002,1763404242095,-240.18312315,0.00041483,3]
[394244003,1763404242105,-6917.13079786,0.00041483,4]
[394244004,1763404242115,-5300.85831906,0.00041483,4]
[394244005,1763404242125,-216041.08003293,0.00041483,7]
[394244006,1763404242135,-987193.23102088,0.00041483,7]
[394244008,1763404242360,-253.05979216,0.00041483,7]
[394244010,1763404242374,-2160.523448,0.00041483,7]
[394244012,1763404242385,-993.46522337,0.00041483,7]
[394244014,1763404242400,-2326.86,0.00041483,7]
[394244015,1763404242450,-238667.10626537,0.00041483,7]
[394244022,1763404243657,-151.0,0.00038625,120]
[394244023,1763404243667,-151.0,0.00041383,120]
[394244024,1763404243676,-212.393808,0.00041476,120]
[394244025,1763404243685,-701.20598492,0.00041483,7]
[394244026,1763404243696,-9300.0,0.00041483,7]
[394244027,1763404243708,-1180.90794168,0.00041483,7]
[394244028,1763404243719,-5997.57528458,0.00041483,7]
[394244029,1763404243765,-39555.06195307,0.00041483,7]
[394244030,1763404243781,-4548.11552004,0.00041483,7]
[394244036,1763404245246,500.0,0.00016999,2]
[394244041,1763404246171,-893.73,0.000276,7]
[394244042,1763404246180,-893.73,0.000361,14]
[394244043,1763404246190,-893.73,0.000387,14]
[394244044,1763404246199,-1084.395,0.00040344,2]
[394244045,1763404246209,-893.73,0.000407,14]
[394244046,1763404246219,-92894.295,0.00041483,7]
[394244047,1763404246278,-557.00801175,0.00041483,7]
[394244048,1763404246290,-268.59999996,0.00041483,7]
[394244235,1763404251287,500.0,0.00017999,2]
[394244236,1763404260660,326.3196045,0.00016999,2]
[394244238,1763404266573,195.0,0.00020043,120]
[394244239,1763404268386,500.0,0.00016999,2]
[394244240,1763404268635,500.0,0.00017999,2]
[394244241,1763404272540,195.0,0.00025877,120]
[394244542,1763404313000,500.0,0.00016999,2]
[394244544,1763404314057,500.0,0.00017999,2]
[394244545,1763404314306,500.0,0.00017999,2]
[394244546,1763404314553,500.0,0.00017999,2]
[394244547,1763404314817,500.0,0.00017999,2]
[394244549,1763404339234,134.56222704,0.00016999,2]
[394244550,1763404339259,365.43777296,0.00016999,2]
[394244551,1763404384958,500.0,0.00016999,2]
[394244552,1763404385256,500.0,0.00017999,2]
[394244555,1763404544129,538.90933031,0.00017999,2]
[394244557,1763404589554,5251.63065884,0.00030136,120]
[394244558,1763404614201,500.0,0.00016999,2]
[394244559,1763404614231,500.0,0.00017999,2]
[394244560,1763404614266,203.71704136,0.00017999,2]
[394244561,1763404679733,500.0,0.00016999,2]
[394244562,1763404680002,500.0,0.00017999,2]
[394244563,1763404680281,500.0,0.00017999,2]
[394244564,1763404680956,500.0,0.00017999,2]
[394244565,1763404681194,500.0,0.00017999,2]
[394244566,1763404695131,500.0,0.00016999,2]
[394244567,1763404695385,500.0,0.00017999,2]
[394244568,1763404695652,500.0,0.00017999,2]
[394244569,1763404695959,500.0,0.00017999,2]
[394244570,1763404696473,500.0,0.00017999,2]
[394244571,1763404719515,500.0,0.00016999,2]
[394244572,1763404719760,500.0,0.00017999,2]
[394244573,1763404720028,500.0,0.00017999,2]
[394244574,1763404720284,500.0,0.00017999,2]
[394244575,1763404720528,500.0,0.00017999,2]
[394244576,1763404809677,184.01,0.00013699,2]
[394244579,1763404854827,500.0,0.00017999,2]
[394244580,1763404855079,500.0,0.00017999,2]
[394244581,1763404855314,500.0,0.00017999,2]
[394244582,1763404855562,488.84961451,0.00017999,2]
[394244585,1763404962640,-851.81681194,0.000185,2]
[394244586,1763404962662,-500.0,0.00018547,2]
[394244587,1763404962683,-500.0,0.000186,2]
[394244588,1763404962710,-250.0,0.00018673,2]
[394244589,1763404962733,-184.01,0.00020187,2]
[394244590,1763404962756,-250.0,0.00020511,2]
[394244591,1763404962777,-250.0,0.00020611,2]
[394244592,1763404962800,-162.45105665,0.00026179,2]
[394244593,1763404962822,-381.71812238,0.00026279,2]
[394244595,1763404993276,532.49857186,0.00016999,2]
[394244641,1763405432359,-184.01,0.00026676,2]
[394244643,1763405432368,-250.0,0.00028311,2]
[394244645,1763405432378,-250.0,0.00029344,2]
[394244647,1763405432387,-638.0,0.00029945,2]
[394244649,1763405432396,-250.0,0.00031263,2]
[394244651,1763405432405,-998.409756,0.00032999,2]
[394244653,1763405432415,-184.01,0.00033165,2]
[394244655,1763405432424,-153.99,0.00033528,30]
[394244657,1763405432433,-175.8984892,0.00033871,2]
[394244659,1763405432442,-800.0,0.00033969,3]
[394244661,1763405432452,-504.0,0.00033969,3]
[394244663,1763405432461,-300.0,0.00033969,3]
[394244664,1763405432470,-2402.45,0.0003397,2]
[394244665,1763405432480,-150.99,0.0003397,30]
[394244666,1763405432489,-999.99,0.0003397,2]
[394244667,1763405432498,-520.89335703,0.0003397,2]
[394244669,1763405432509,-2999.64,0.0003397,2]
[394244672,1763405432520,-5578.85134324,0.0003397,2]
[394244674,1763405432531,-900.60529973,0.0003397,2]
[394244676,1763405432540,-1517.41,0.00033971,2]
[394244678,1763405432549,-150.99,0.00033971,2]
[394244679,1763405432559,-299.99,0.00033971,30]
[394244681,1763405432570,-461.71,0.00033971,2]
[394244683,1763405432579,-3192.2545204,0.00033971,2]
[394244686,1763405432590,-298.45475,0.00033971,2]
[394244688,1763405432602,-6509.2807296,0.00033971,2]
[394244690,1763405432612,-286.52,0.00033971,2]
[394244693,1763405432621,-38514.01798675,0.00033971,2]
[394244696,1763405432632,-987.4479749,0.00033971,2]
[394244704,1763405432665,-1697.467,0.00033971,2]
[394244707,1763405432676,-101.14703835,0.00033971,2]
[394244711,1763405432686,-327.85296179,0.00033971,2]
[394244714,1763405432697,-664.64587,0.00033971,2]
[394244717,1763405432707,-1427.00894998,0.00033971,2]
[394244720,1763405432718,-1117.36221823,0.00033971,2]
[394244723,1763405432728,-981.77892996,0.00033971,2]
[394244858,1763405438658,-206.91107004,0.00033971,2]
[394244859,1763405438668,-500.0,0.00033973,5]
[394244860,1763405438678,-500.96249559,0.00033973,5]
[394244861,1763405438688,-501.44245862,0.00033973,5]
[394244862,1763405438698,-500.0,0.00033973,5]
[394244863,1763405438708,-500.0,0.00033973,2]
[394244864,1763405438717,-564.59194382,0.00033973,5]
[394244865,1763405438727,-500.0,0.00033973,5]
[394244866,1763405438736,-500.64468798,0.00033973,5]
[394244867,1763405438746,-420.27752062,0.00033973,3]
[394244868,1763405438756,-500.0,0.00033973,2]
[394244869,1763405438766,-500.0,0.00033973,5]
[394244870,1763405438775,-500.0,0.00033973,5]
[394244871,1763405438784,-715.409,0.00034018,37]
[394244872,1763405438794,-166.845,0.00034018,37]
[394244873,1763405438803,-294.42607375,0.00034521,5]
[394244874,1763405438813,-500.0,0.00034521,2]
[394244875,1763405438824,-500.0,0.00034521,5]
[394244876,1763405438833,-1000.0,0.00034521,2]
[394244877,1763405438843,-406.97735465,0.00034521,5]
[394244878,1763405438852,-397.31767821,0.00035068,2]
[394244879,1763405438862,-183.09,0.00035328,2]
[394244880,1763405438872,-205.2,0.00035328,2]
[394244881,1763405438882,-296.38799424,0.00035356,2]
[394244882,1763405438891,-153.99,0.00035558,60]
[394244883,1763405438901,-151.0,0.0003558,2]
[394244884,1763405438911,-151.0,0.0003558,2]
[394244885,1763405438920,-151.0,0.0003558,2]
[394244886,1763405438930,-151.0,0.0003558,2]
[394244887,1763405438939,-151.0,0.0003558,2]
[394244888,1763405438949,-151.0,0.0003558,2]
[394244889,1763405438960,-151.0,0.0003558,2]
[394244890,1763405438969,-151.0,0.0003558,2]
[394244891,1763405438979,-151.0,0.0003558,2]
[394244892,1763405438988,-151.0,0.0003558,2]
[394244893,1763405438998,-151.0,0.0003558,2]
[394244894,1763405439008,-151.0,0.0003558,2]
[394244895,1763405439018,-151.0,0.0003558,2]
[394244896,1763405439027,-151.0,0.0003558,2]
[394244897,1763405439036,-151.0,0.0003558,2]
[394244898,1763405439046,-151.0,0.0003558,2]
[394244900,1763405439056,-151.0,0.0003558,2]
[394244902,1763405439065,-151.0,0.0003558,2]
[394244904,1763405439077,-151.0,0.0003558,2]
[394244906,1763405439087,-151.0,0.0003558,2]
[394244908,1763405439097,-151.0,0.0003558,2]
[394244910,1763405439106,-151.0,0.0003558,2]
[394244912,1763405439115,-1000.0,0.00035616,2]
[394244914,1763405439126,-500.0,0.00035616,2]
[394244916,1763405439136,-500.0,0.00035616,2]
[394244918,1763405439146,-500.0,0.00035616,2]
[394244920,1763405439157,-159.74622,0.00035888,30]
[394244923,1763405439167,-500.0,0.0003589,2]
[394244925,1763405439176,-500.0,0.0003589,2]
[394244926,1763405439186,-1027.04,0.00036,2]
[394244929,1763405439198,-5647.38,0.00036047,2]
[394244931,1763405439208,-159.74622,0.00036088,30]
[394244933,1763405439218,-500.0,0.00036164,2]
[394244935,1763405439228,-276.91216785,0.00036164,2]
[394244937,1763405439239,-159.74622,0.00036288,30]
[394244939,1763405439249,-500.0,0.00036438,2]
[394244941,1763405439259,-159.74622,0.00036488,30]
[394244943,1763405439268,-373.60107724,0.00036488,30]
[394244945,1763405439280,-500.0,0.00036488,30]
[394244947,1763405439290,-2512.41,0.0003654,2]
[394244949,1763405439299,-159.74622,0.00036688,30]
[394244951,1763405439309,-227.38871973,0.00036712,2]
[394244953,1763405439319,-1027.04,0.0003672,2]
[394244955,1763405439330,-159.74622,0.00036888,30]
[394244957,1763405439340,-532.4874,0.00036888,7]
[394244959,1763405439350,-159.74622,0.00037088,30]
[394244961,1763405439359,-150.0,0.00037224,2]
[394244963,1763405439369,-150.0,0.00037282,7]
[394244965,1763405439378,-150.0,0.00037282,7]
[394244967,1763405439389,-150.0,0.00037282,7]
[394244968,1763405439399,-150.0,0.00037282,7]
[394244969,1763405439408,-150.0,0.00037282,7]
[394244970,1763405439418,-150.0,0.00037282,7]
[394244971,1763405439427,-150.0,0.00037282,7]
[394244972,1763405439436,-150.0,0.00037282,7]
[394244973,1763405439445,-150.0,0.00037282,7]
[394244974,1763405439454,-150.0,0.00037282,7]
[394244975,1763405439464,-150.0,0.00037282,7]
[394244976,1763405439473,-150.0,0.00037282,7]
[394244977,1763405439482,-200.0,0.00037285,2]
[394244978,1763405439491,-159.74622,0.00037288,30]
[394244980,1763405439501,-150.0,0.00037412,7]
[394244982,1763405439511,-1027.04,0.0003744,2]
[394244984,1763405439520,-150.0,0.00037455,7]
[394244986,1763405439530,-150.0,0.00037462,7]
[394244988,1763405439539,-503.0,0.00037479,2]
[394244990,1763405439550,-159.74622,0.00037488,30]
[394244992,1763405439560,-150.0,0.0003751,2]
[394244994,1763405439569,-150.0,0.0003751,120]
[394244996,1763405439581,-150.0,0.00037512,7]
[394244998,1763405439590,-150.0,0.00037512,7]
[394245000,1763405439599,-150.0,0.00037541,7]
[394245002,1763405439609,-4711.07,0.00037571,2]
[394245004,1763405439618,-150.0,0.00037578,7]
[394245006,1763405439628,-153.99,0.00037589,60]
[394245008,1763405439637,-150.0,0.00037627,7]
[394245011,1763405439646,-150.0,0.00037642,7]
[394245013,1763405439656,-150.0,0.00037671,7]
[394245015,1763405439665,-159.74622,0.00037688,30]
[394245017,1763405439675,-150.0,0.00037696,7]
[394245019,1763405439684,-150.0,0.00037742,7]
[394245021,1763405439693,-150.0,0.00037742,7]
[394245023,1763405439703,-150.0,0.000378,7]
[394245025,1763405439713,-150.0,0.000378,7]
[394245027,1763405439723,-150.0,0.00037823,7]
[394245029,1763405439732,-150.0,0.00037874,7]
[394245031,1763405439741,-159.74622,0.00037888,30]
[394245033,1763405439751,-150.0,0.00037929,7]
[394245035,1763405439761,-150.0,0.00037973,7]
[394245037,1763405439772,-150.0,0.00037973,7]
[394245039,1763405439782,-150.0,0.00037973,7]
[394245041,1763405439791,-150.0,0.00037973,7]